bitfinex-derivatives/quotes_BTCF0:USTF0_20260315
["timestamp","ask_amount","ask_price","bid_price","bid_amount"]
[1773612122854,0.41495188,72184.0,72130.0,0.00184]
[1773612123055,0.08657601,72190.0,72138.0,0.2468458]
[1773612123259,0.00492,72179.0,72136.0,0.2468458]
[1773612123565,0.00492,72179.0,72131.0,0.13862703]
[1773612123566,0.041563,72168.0,72150.0,0.041573]
[1773612123863,0.00492,72179.0,72151.0,0.00184]
[1773612124060,0.041566,72162.0,72152.0,0.00184]
[1773612124265,0.041565,72165.0,72153.0,0.00184]
[1773612124466,0.00184,72173.0,72148.0,0.041574]
[1773612124467,0.041566,72163.0,72148.0,0.041574]
[1773612124668,0.041566,72163.0,72149.0,0.00184]
[1773612124863,0.041565,72164.0,72149.0,0.00184]
[1773612126565,0.042565,72164.0,72149.0,0.00184]
[1773612127471,0.041567,72162.0,72149.0,0.00184]
[1773612127667,0.001,72164.0,72145.0,0.00184]
[1773612127857,0.001,72164.0,72139.0,0.00184]
[1773612128453,0.04157,72156.0,72140.0,0.041579]
[1773612128657,0.041571,72155.0,72140.0,0.043419]
[1773612129262,0.04157,72156.0,72140.0,0.00184]
[1773612130461,0.12394399,72178.0,72144.0,0.041577]
[1773612130663,0.041568,72161.0,72140.0,0.00184]
[1773612131268,0.041568,72161.0,72115.0,0.12651015]
[1773612131269,0.00184,72164.0,72119.0,0.00184]
[1773612131570,0.00184,72164.0,72138.0,0.04158]
[1773612131756,0.041571,72154.0,72140.0,0.041579]
[1773612132271,0.041571,72154.0,72141.0,0.041578]
[1773612132472,0.04157,72157.0,72138.0,0.00184]
[1773612132672,0.04157,72157.0,72143.0,0.041577]
[1773612133274,0.04157,72157.0,72138.0,0.00184]
[1773612133275,0.04157,72157.0,72144.0,0.041576]
[1773612133578,0.041567,72161.0,72147.0,0.041575]
[1773612133767,0.041567,72161.0,72124.0,0.041588]
[1773612133768,0.041567,72161.0,72148.0,0.041574]
[1773612133963,0.041567,72161.0,72149.0,0.00184]
[1773612134167,0.041567,72162.0,72149.0,0.043414]
[1773612134365,0.08657601,72180.0,72149.0,0.043414]
[1773612134366,0.08657601,72180.0,72149.0,0.00184]
[1773612134573,0.00184,72179.0,72149.0,0.00184]
[1773612135273,0.041565,72165.0,72149.0,0.00184]
[1773612135676,0.04156,72174.0,72149.0,0.00184]
[1773612135875,0.00184,72176.0,72149.0,0.00184]
[1773612136076,0.041563,72169.0,72149.0,0.00184]
[1773612136276,0.041564,72167.0,72155.0,0.04157]
[1773612136679,0.041563,72169.0,72155.0,0.04157]
[1773612136867,0.041562,72169.0,72149.0,0.00184]
[1773612138178,0.042562,72169.0,72156.0,0.041569]
[1773612138778,0.042562,72169.0,72157.0,0.041569]
[1773612139174,0.041563,72169.0,72156.0,0.04157]
[1773612139381,0.042563,72169.0,72156.0,0.04157]
[1773612139676,0.041563,72169.0,72156.0,0.04157]
[1773612139879,0.042563,72169.0,72156.0,0.04157]
[1773612140270,0.001,72169.0,72157.0,0.041569]
[1773612140471,0.001,72169.0,72158.0,0.0018]
[1773612140679,0.0018,72180.0,72158.0,0.0018]
[1773612140874,0.12585145,72198.0,72158.0,0.0018]
[1773612141087,0.0018,72197.0,72158.0,0.0018]
[1773612141272,0.041541,72207.0,72175.0,0.041559]
[1773612141273,0.041551,72190.0,72175.0,0.041559]
[1773612141467,0.041541,72207.0,72174.0,0.041559]
[1773612141667,0.0018,72203.0,72180.0,0.041556]
[1773612141875,0.041549,72193.0,72178.0,0.041557]
[1773612142074,0.002,72198.0,72178.0,0.041557]
[1773612142269,0.041547,72197.0,72179.0,0.00831557]
[1773612142469,0.0018,72201.0,72179.0,0.00831557]
[1773612142678,0.041548,72195.0,72182.0,0.041555]
[1773612143082,0.0018,72200.0,72174.0,0.0018]
[1773612143280,0.041551,72190.0,72176.0,0.041558]
[1773612143485,0.041551,72190.0,72177.0,0.041557]
[1773612144487,0.041549,72192.0,72178.0,0.041557]
[1773612144674,0.041548,72194.0,72168.0,0.0018]
[1773612144875,0.041549,72193.0,72179.0,0.041556]
[1773612145081,0.001,72198.0,72177.0,0.0018]
[1773612145285,0.001,72198.0,72178.0,0.0018]
[1773612145477,0.041546,72198.0,72184.0,0.041553]
[1773612145672,0.041547,72197.0,72184.0,0.0018]
[1773612146183,0.041545,72200.0,72185.0,0.041553]
[1773612146381,0.001,72198.0,72185.0,0.041553]
[1773612146776,0.05,72204.0,72186.0,0.041553]
[1773612146978,0.05,72204.0,72184.0,0.0018]
[1773612147174,0.05,72204.0,72191.0,0.04155]
[1773612147378,0.001,72198.0,72191.0,0.04155]
[1773612147678,0.001,72198.0,72193.0,0.041548]
[1773612147882,0.001,72200.0,72191.0,0.04155]
[1773612148078,0.041537,72213.0,72198.0,0.041545]
[1773612148388,0.041539,72211.0,72198.0,0.041545]
[1773612148987,0.041539,72211.0,72196.0,0.0018]
[1773612148988,0.041537,72214.0,72199.0,0.041545]
[1773612149191,0.041534,72219.0,72203.0,0.041542]
[1773612149388,0.041536,72216.0,72201.0,0.041544]
[1773612149601,0.001,72211.0,72198.0,0.041545]
[1773612149796,0.00492,72238.0,72211.0,0.041538]
[1773612149998,0.041531,72225.0,72211.0,0.041538]
[1773612150196,0.00492,72238.0,72212.0,0.0018]
[1773612150397,0.00492,72238.0,72213.0,0.0018]
[1773612150599,0.0018,72254.0,72200.0,0.08657601]
[1773612150806,0.041533,72220.0,72206.0,0.041541]
[1773612151008,0.08837601,72240.0,72207.0,0.0018]
[1773612151194,0.041532,72222.0,72208.0,0.043339]
[1773612151395,0.041532,72222.0,72209.0,0.0018]
[1773612151590,0.001,72225.0,72211.0,0.041538]
[1773612151894,0.041518,72246.0,72209.0,0.0018]
[1773612152200,0.08657601,72260.0,72209.0,0.0018]
[1773612152402,0.0018,72246.0,72209.0,0.0018]
[1773612152597,0.041528,72229.0,72216.0,0.041535]
[1773612152797,0.04221922,72231.0,72209.0,0.0018]
[1773612153097,0.00069222,72231.0,72209.0,0.0018]
[1773612153406,2.2e-07,72231.0,72226.0,0.041529]
[1773612153607,0.041522,72240.0,72227.0,0.0018]
[1773612153811,0.0018,72253.0,72227.0,0.0018]
[1773612153994,0.00491,72265.0,72227.0,0.0018]
[1773612154201,0.041501,72277.0,72227.0,0.0018]
[1773612154401,0.0018,72276.0,72227.0,0.0018]
[1773612154599,0.041518,72247.0,72233.0,0.041526]
[1773612154801,0.041519,72245.0,72230.0,0.041527]
[1773612154996,0.041517,72248.0,72233.0,0.041525]
[1773612155196,0.0018,72264.0,72227.0,0.0018]
[1773612155392,0.001,72265.0,72227.0,0.0018]
[1773612155393,0.04151,72260.0,72227.0,0.0018]
[1773612155705,0.041512,72256.0,72227.0,0.0018]
[1773612156006,0.001,72265.0,72227.0,0.0018]
[1773612156200,0.041511,72258.0,72243.0,0.04152]
[1773612156504,0.041511,72258.0,72244.0,0.043319]
[1773612156694,0.041511,72258.0,72245.0,0.0018]
[1773612157198,0.042511,72258.0,72245.0,0.0018]
[1773612157397,0.001,72258.0,72248.0,0.041517]
[1773612157704,0.001,72258.0,72245.0,0.043318]
[1773612157910,0.001,72258.0,72248.0,0.041516]
[1773612158210,0.001,72258.0,72246.0,0.041518]
[1773612158403,0.041511,72260.0,72246.0,0.041518]
[1773612159008,0.041504,72271.0,72240.0,0.0018]
[1773612159209,0.041504,72271.0,72204.0,0.34715373]
[1773612159210,0.041504,72271.0,72241.0,0.0018]
[1773612159507,0.08657601,72270.0,72242.0,0.0018]
[1773612159814,0.04152,72243.0,72234.0,0.0018]
[1773612160012,0.041519,72245.0,72234.0,0.00176]
[1773612160305,0.0415,72278.0,72205.0,0.12451065]
[1773612160306,0.041525,72234.0,72205.0,0.12451065]
[1773612160510,0.041525,72234.0,72194.0,0.2468458]
[1773612160511,0.041527,72232.0,72217.0,0.041534]
[1773612160698,0.00176,72247.0,72218.0,0.00176]
[1773612160902,0.00176,72248.0,72218.0,0.00176]
[1773612161102,0.041528,72230.0,72218.0,0.00176]
[1773612161509,0.041528,72228.0,72218.0,0.00176]
[1773612162100,0.12375537,72253.0,72218.0,0.00176]
[1773612162311,0.00176,72257.0,72223.0,0.041531]
[1773612162607,0.00176,72257.0,72218.0,0.00176]
[1773612162608,0.041525,72235.0,72221.0,0.041532]
[1773612162910,0.041526,72234.0,72219.0,0.041533]
[1773612163210,0.041526,72234.0,72218.0,0.00176]
[1773612163211,0.041526,72234.0,72221.0,0.041532]
[1773612163709,0.00176,72247.0,72219.0,0.041533]
[1773612163710,0.041526,72233.0,72219.0,0.041533]
[1773612164011,0.041528,72229.0,72218.0,0.00276]
[1773612164311,0.041528,72229.0,72221.0,0.001]
[1773612164812,0.00176,72242.0,72218.0,0.044294]
[1773612165010,0.041528,72230.0,72218.0,0.043294]
[1773612165212,0.041528,72230.0,72218.0,0.00176]
[1773612165507,0.041528,72229.0,72218.0,0.00176]
[1773612166097,0.041527,72231.0,72218.0,0.00176]
[1773612166510,0.00176,72242.0,72218.0,0.00176]
[1773612167012,0.041527,72230.0,72218.0,0.00276]
[1773612167510,0.00176,72242.0,72218.0,0.00176]
[1773612167812,0.00176,72242.0,72219.0,0.00176]
[1773612168002,0.041529,72227.0,72213.0,0.043297]
[1773612168200,0.00176,72242.0,72211.0,0.041538]
[1773612168502,0.041528,72228.0,72210.0,0.00176]
[1773612168701,0.041528,72228.0,72192.0,0.46795304]
[1773612168702,0.041522,72239.0,72211.0,0.00176]
[1773612168903,0.12097875,72251.0,72211.0,0.00176]
[1773612168904,0.041517,72249.0,72211.0,0.00176]
[1773612169219,0.041531,72224.0,72211.0,0.00176]
[1773612169512,0.041531,72224.0,72211.0,0.043298]
[1773612169904,0.041531,72224.0,72212.0,0.041537]
[1773612170213,0.00176,72241.0,72211.0,0.00176]
[1773612170413,0.00176,72241.0,72210.0,0.041538]
[1773612170708,0.041511,72258.0,72224.0,0.04153]
[1773612170911,0.041525,72235.0,72222.0,0.041532]
[1773612171102,0.12278345,72258.0,72222.0,0.041532]
[1773612171103,0.041525,72234.0,72222.0,0.041532]
[1773612171503,0.041526,72233.0,72220.0,0.043293]
[1773612171803,0.041526,72233.0,72221.0,0.041532]
[1773612172008,0.00176,72250.0,72213.0,0.00176]
[1773612172009,0.041523,72239.0,72213.0,0.00176]
[1773612172203,0.00176,72238.0,72213.0,0.00176]
[1773612172407,0.041532,72222.0,72213.0,0.00176]
[1773612172713,0.00176,72238.0,72205.0,0.00176]
[1773612173102,0.041533,72220.0,72207.0,0.04154]
[1773612173299,0.041533,72220.0,72208.0,0.04154]
[1773612173499,0.041532,72222.0,72209.0,0.041539]
[1773612173699,0.00176,72242.0,72205.0,0.00176]
[1773612173910,0.041527,72231.0,72205.0,0.00176]
[1773612174118,0.041528,72230.0,72217.0,0.041534]
[1773612174321,0.041528,72230.0,72218.0,0.00176]
[1773612174606,0.041521,72241.0,72218.0,0.00176]
[1773612174807,0.041522,72240.0,72228.0,0.041528]
[1773612175011,0.12438224,72264.0,72229.0,0.00176]
[1773612175211,0.12614224,72264.0,72230.0,0.00176]
[1773612175514,0.12614224,72264.0,72221.0,0.041532]
[1773612175515,0.041517,72249.0,72235.0,0.041524]
[1773612175713,0.041517,72249.0,72236.0,0.00176]
[1773612175912,0.041517,72249.0,72237.0,0.043283]
[1773612176120,0.041517,72249.0,72238.0,0.00176]
[1773612176306,0.041516,72250.0,72238.0,0.00176]
[1773612176623,0.001,72249.0,72238.0,0.00176]
[1773612176808,0.042517,72249.0,72238.0,0.00176]
[1773612177010,0.041517,72249.0,72238.0,0.00176]
[1773612177206,0.042517,72249.0,72238.0,0.00176]
[1773612177605,0.001,72249.0,72238.0,0.00176]
[1773612177806,0.00176,72271.0,72238.0,0.00176]
[1773612178016,0.041514,72253.0,72240.0,0.041521]
[1773612178214,0.041514,72253.0,72241.0,0.041521]
[1773612178609,0.041513,72255.0,72238.0,0.00176]
[1773612178816,0.041514,72254.0,72241.0,0.04152]
[1773612179109,0.041506,72267.0,72238.0,0.00176]
[1773612179311,0.041516,72249.0,72238.0,0.00176]
[1773612180012,0.041507,72265.0,72238.0,0.00176]
[1773612180407,0.00176,72266.0,72225.0,0.16315304]
[1773612180614,0.041522,72239.0,72226.0,0.043289]
[1773612180813,0.00176,72253.0,72226.0,0.00176]
[1773612181116,0.00176,72253.0,72201.0,0.5314828]
[1773612181117,0.08629729,72250.0,72214.0,0.00176]
[1773612181315,0.041528,72229.0,72215.0,0.041535]
[1773612181617,0.041529,72228.0,72215.0,0.041535]
[1773612182023,0.08629729,72230.0,72206.0,4e-08]
[1773612182311,0.041529,72228.0,72200.0,0.00176]
[1773612182509,0.041532,72222.0,72207.0,0.04154]
[1773612182702,0.04153,72225.0,72208.0,0.00176]
[1773612182908,0.04153,72225.0,72192.0,0.2468458]
[1773612182909,0.04153,72225.0,72211.0,0.041538]
[1773612183105,0.041531,72224.0,72212.0,0.00176]
[1773612183310,0.041522,72239.0,72224.0,0.041531]
[1773612183512,0.041521,72241.0,72227.0,0.041529]
[1773612183711,0.041522,72240.0,72228.0,0.00176]
[1773612183916,0.041523,72239.0,72228.0,0.00176]
[1773612184113,0.041516,72250.0,72228.0,0.00176]
[1773612184406,0.041505,72269.0,72218.0,0.2468458]
[1773612184608,0.041518,72247.0,72234.0,0.041525]
[1773612184819,0.041518,72247.0,72235.0,0.00176]
[1773612185117,0.041516,72249.0,72236.0,0.00176]
[1773612185311,0.00176,72264.0,72237.0,0.00176]
[1773612185519,0.041516,72250.0,72237.0,0.00176]
[1773612186018,0.041516,72250.0,72223.0,0.00176]
[1773612186312,0.00176,72258.0,72223.0,0.00176]
[1773612186613,0.00176,72263.0,72223.0,0.00176]
[1773612186820,0.041517,72248.0,72223.0,0.00176]
[1773612187014,0.041517,72248.0,72234.0,0.041525]
[1773612187315,0.041517,72248.0,72235.0,0.00176]
[1773612187520,0.00176,72263.0,72236.0,0.041523]
[1773612187709,0.041516,72250.0,72236.0,0.041524]
[1773612187911,0.041517,72249.0,72236.0,0.041524]
[1773612189113,0.00176,72263.0,72235.0,0.00176]
[1773612189318,0.00176,72264.0,72241.0,0.041521]
[1773612189618,0.041514,72254.0,72239.0,0.041522]
[1773612189818,0.041512,72257.0,72235.0,0.00176]
[1773612190006,0.00069174,72281.0,72248.0,0.041517]
[1773612190207,0.08805729,72280.0,72248.0,0.00176]
[1773612190518,0.0415,72277.0,72248.0,0.00176]
[1773612191318,0.001,72264.0,72248.0,0.00176]
[1773612191627,0.041509,72263.0,72250.0,0.041516]
[1773612191813,0.001,72264.0,72251.0,0.041515]
[1773612192010,0.041506,72267.0,72253.0,0.041514]
[1773612192211,0.041508,72263.0,72248.0,0.00176]
[1773612192420,0.001,72264.0,72250.0,0.041515]
[1773612192717,0.041507,72265.0,72251.0,0.041515]
[1773612193122,0.00176,72274.0,72256.0,0.041512]
[1773612193414,0.00176,72274.0,72248.0,0.00176]
[1773612193722,0.00069174,72281.0,72256.0,0.041512]
[1773612193922,0.041506,72267.0,72257.0,0.00176]
[1773612194110,0.041506,72267.0,72258.0,0.00176]
[1773612194310,0.00069174,72281.0,72261.0,0.041509]
[1773612194507,0.041503,72272.0,72258.0,0.00176]
[1773612194705,0.00069174,72281.0,72258.0,0.00176]
[1773612194706,0.041504,72271.0,72258.0,0.00176]
[1773612194912,0.00069174,72281.0,72265.0,0.041507]
[1773612195121,0.00069174,72281.0,72262.0,0.00172]
[1773612195416,0.08629729,72280.0,72255.0,0.043232]
[1773612195613,0.00172,72279.0,72255.0,0.00172]
[1773612195814,0.041504,72271.0,72255.0,0.00172]
[1773612196017,0.00269174,72281.0,72255.0,0.00172]
[1773612196219,0.04418974,72281.0,72264.0,0.041507]
[1773612196416,0.0415,72278.0,72265.0,0.00172]
[1773612196615,0.041499,72280.0,72263.0,0.041508]
[1773612196814,0.041499,72280.0,72264.0,0.00172]
[1773612197016,0.041499,72279.0,72264.0,0.00172]
[1773612197209,0.0415,72277.0,72265.0,0.00172]
[1773612197720,0.0415,72277.0,72263.0,0.041508]
[1773612198018,0.001,72279.0,72264.0,0.00172]
[1773612198225,0.041501,72276.0,72265.0,0.00172]
[1773612198520,0.0415,72277.0,72265.0,0.00172]
[1773612199425,0.00069174,72281.0,72265.0,0.00172]
[1773612200315,0.0067769,72300.0,72240.0,0.08629729]
[1773612200519,0.27644,72338.0,72240.0,0.08629729]
[1773612200520,0.08629729,72340.0,72270.0,0.08629729]
[1773612200720,0.041482,72309.0,72271.0,0.00172]
[1773612201019,0.00172,72329.0,72297.0,0.041489]
[1773612201219,0.00172,72329.0,72298.0,0.00172]
[1773612201425,0.08629729,72340.0,72299.0,0.043207]
[1773612201621,0.08629729,72340.0,72280.0,0.08629729]
[1773612201622,0.08629729,72330.0,72300.0,0.00172]
[1773612201820,0.043191,72329.0,72300.0,0.00172]
[1773612202017,0.21151322,72340.0,72300.0,0.00172]
[1773612202018,0.041478,72316.0,72300.0,0.00172]
[1773612202326,0.001,72329.0,72305.0,0.041484]
[1773612202526,0.001,72329.0,72300.0,0.00172]
[1773612202723,0.041474,72323.0,72300.0,0.00172]
[1773612202923,0.001,72329.0,72290.0,0.08629729]
[1773612203233,0.00172,72328.0,72291.0,0.00172]
[1773612203426,0.00172,72328.0,72292.0,0.00172]
[1773612203640,0.00172,72328.0,72266.0,0.3046]
[1773612203641,0.041488,72299.0,72284.0,0.00172]
[1773612203931,0.041488,72299.0,72263.0,0.15592712]
[1773612203932,0.041478,72316.0,72285.0,0.041495]
[1773612204127,0.041485,72304.0,72283.0,0.00172]
[1773612204325,0.001,72329.0,72284.0,0.00172]
[1773612204526,0.041485,72305.0,72285.0,0.00172]
[1773612204720,0.041485,72305.0,72265.0,0.041507]
[1773612204721,0.00172,72316.0,72290.0,0.00364]
[1773612204920,0.041472,72326.0,72290.0,0.00364]
[1773612204921,0.00172,72315.0,72290.0,0.00364]
[1773612205117,0.00172,72314.0,72252.0,0.3056256]
[1773612205429,0.001,72329.0,72265.0,0.041507]
[1773612205732,0.041479,72315.0,72301.0,0.041486]
[1773612205920,0.00172,72314.0,72290.0,0.00172]
[1773612206120,0.00172,72313.0,72286.0,0.00172]
[1773612206328,0.041485,72305.0,72290.0,0.041493]
[1773612206523,0.00172,72323.0,72291.0,0.00172]
[1773612206720,0.041489,72298.0,72285.0,0.041496]
[1773612206926,0.041489,72298.0,72284.0,0.00172]
[1773612207232,0.041489,72296.0,72284.0,0.00172]
[1773612207431,0.041488,72298.0,72290.0,0.00364]
[1773612207628,0.08629729,72310.0,72274.0,0.00172]
[1773612207830,0.041489,72298.0,72267.0,0.00172]
[1773612208137,0.0415,72277.0,72263.0,0.041508]
[1773612208435,0.00172,72297.0,72260.0,0.00172]
[1773612208623,0.041495,72287.0,72271.0,0.041503]
[1773612208819,0.041495,72287.0,72261.0,0.00172]
[1773612208820,0.041495,72286.0,72272.0,0.041503]
[1773612209036,0.00172,72298.0,72271.0,0.00172]
[1773612209241,0.51714247,72353.0,72240.0,0.08629729]
[1773612209242,0.30456,72330.0,72270.0,0.08801729]
[1773612209534,1.40775545,72364.0,72270.0,0.08801729]
[1773612209535,0.02604545,72364.0,72300.0,0.08629729]
[1773612209735,0.02604545,72364.0,72320.0,0.08629729]
[1773612210034,0.02604545,72364.0,72301.0,0.82080494]
[1773612210035,0.02604545,72364.0,72321.0,0.26939914]
[1773612210238,0.02604545,72364.0,72322.0,0.26852274]
[1773612210433,0.02604545,72364.0,72323.0,0.00172]
[1773612210627,0.041458,72351.0,72333.0,0.041468]
[1773612210833,0.041458,72351.0,72310.0,0.08629729]
[1773612210834,0.02704545,72364.0,72334.0,0.00172]
[1773612211040,0.02704545,72364.0,72310.0,0.08629729]
[1773612211041,0.041453,72359.0,72311.0,0.13823037]
[1773612211232,0.041453,72359.0,72323.0,0.041474]
[1773612211538,0.041465,72339.0,72323.0,0.041474]
[1773612211732,0.02804545,72364.0,72330.0,0.04147]
[1773612211934,0.02804545,72364.0,72325.0,0.041472]
[1773612212135,0.041463,72342.0,72326.0,0.043192]
[1773612212333,0.041451,72363.0,72310.0,0.08629729]
[1773612212523,0.041472,72327.0,72290.0,0.08629729]
[1773612212722,0.041473,72325.0,72300.0,0.08629729]
[1773612212929,0.041473,72325.0,72291.0,0.26839402]
[1773612212930,0.00172,72349.0,72310.0,0.08629729]
[1773612213136,0.02604545,72364.0,72311.0,0.26848987]
[1773612213343,0.041459,72350.0,72335.0,0.041466]
[1773612213536,0.041461,72346.0,72331.0,0.041469]
[1773612213835,0.02604545,72364.0,72298.0,0.2468458]
[1773612214040,0.041458,72352.0,72320.0,0.08629729]
[1773612214232,0.02604545,72364.0,72321.0,0.00172]
[1773612214427,0.041458,72352.0,72321.0,0.00172]
[1773612214631,0.041453,72360.0,72322.0,0.40458418]
[1773612214834,0.02604545,72364.0,72330.0,0.08629729]
[1773612215146,0.02604545,72364.0,72323.0,0.26635285]
[1773612215147,0.041455,72356.0,72340.0,0.041464]
[1773612215339,0.041455,72356.0,72341.0,0.00172]
[1773612215640,0.041463,72343.0,72341.0,0.00172]
[1773612215846,0.041466,72337.0,72334.0,0.00172]
[1773612216043,0.041465,72340.0,72335.0,0.00172]
[1773612216339,0.041452,72362.0,72336.0,0.00172]
[1773612216543,0.02876545,72364.0,72337.0,0.043185]
[1773612216745,0.041459,72349.0,72338.0,0.00172]
[1773612216947,0.02604545,72364.0,72339.0,0.00172]
[1773612217242,0.02604545,72364.0,72340.0,0.00172]
[1773612217538,0.02804545,72364.0,72341.0,0.00172]
[1773612217745,0.02804545,72364.0,72342.0,0.00172]
[1773612217746,0.041459,72349.0,72342.0,0.00172]
[1773612217936,0.02804545,72364.0,72343.0,0.00172]
[1773612218132,0.041462,72345.0,72328.0,0.041471]
[1773612218337,0.041463,72342.0,72329.0,0.00172]
[1773612218544,0.041452,72361.0,72330.0,0.00172]
[1773612218744,0.041452,72361.0,72310.0,0.08629729]
[1773612218745,0.041466,72337.0,72331.0,0.00168]
[1773612218941,0.041465,72338.0,72332.0,0.00168]
[1773612219145,0.041464,72340.0,72333.0,0.00168]
[1773612219447,0.00168,72357.0,72334.0,0.00168]
[1773612219744,0.041463,72342.0,72335.0,0.00168]
[1773612219949,0.041463,72342.0,72336.0,0.00098873]
[1773612220253,0.00168,72357.0,72334.0,0.00168]
[1773612220446,0.00168,72357.0,72330.0,0.00168]
[1773612220648,0.00168,72357.0,72331.0,0.00168]
[1773612220849,0.041466,72337.0,72326.0,0.00168]
[1773612221047,0.041456,72355.0,72326.0,0.00168]
[1773612221048,0.041467,72336.0,72326.0,0.00168]
[1773612221639,0.041468,72333.0,72326.0,0.00168]
[1773612221837,0.00168,72345.0,72321.0,0.00168]
[1773612222045,0.00168,72345.0,72313.0,0.00168]
[1773612222545,0.041452,72361.0,72313.0,0.00168]
[1773612222854,0.041452,72361.0,72322.0,0.041474]
[1773612222855,0.041466,72336.0,72322.0,0.041474]
[1773612223152,0.041466,72336.0,72323.0,0.00168]
[1773612223846,0.02604545,72364.0,72323.0,0.00168]
[1773612224045,0.041461,72347.0,72326.0,0.001]
[1773612224245,0.041465,72338.0,72326.0,0.001]
[1773612224445,0.041465,72340.0,72327.0,0.00168]
[1773612224642,0.041465,72340.0,72328.0,0.00168]
[1773612224841,0.041465,72340.0,72323.0,0.001]
[1773612224842,0.041467,72336.0,72329.0,0.00168]
[1773612225044,0.00168,72352.0,72294.0,0.2468458]
[1773612225246,0.041461,72346.0,72290.0,0.08629729]
[1773612225451,0.00168,72345.0,72291.0,0.26864022]
[1773612225652,0.041474,72323.0,72309.0,0.041482]
[1773612225958,0.041475,72322.0,72310.0,0.00168]
[1773612226151,0.041475,72322.0,72311.0,0.00168]
[1773612226854,0.041468,72334.0,72290.0,0.30436]
[1773612227053,0.041468,72334.0,72299.0,0.041487]
[1773612227357,0.00168,72336.0,72285.0,0.0001065]
[1773612227358,0.041483,72308.0,72300.0,0.00168]
[1773612227568,0.041483,72308.0,72294.0,0.04149]
[1773612227755,0.041484,72306.0,72295.0,0.00168]
[1773612227950,0.041486,72303.0,72296.0,0.00168]
[1773612228146,0.041486,72303.0,72285.0,0.0001065]
[1773612228147,0.041486,72303.0,72297.0,0.00168]
[1773612228352,0.041485,72304.0,72298.0,0.00168]
[1773612228552,0.041486,72303.0,72288.0,0.041494]
[1773612228753,0.041486,72303.0,72289.0,0.00168]
[1773612229054,0.041486,72302.0,72289.0,0.041493]
[1773612229259,0.00168,72324.0,72290.0,0.00168]
[1773612229463,0.041483,72308.0,72285.0,0.0001065]
[1773612229668,0.00168,72326.0,72290.0,0.041492]
[1773612229848,0.041485,72304.0,72290.0,0.041492]
[1773612230056,0.00168,72319.0,72291.0,0.041492]
[1773612230254,0.00168,72319.0,72286.0,0.00168]
[1773612230454,0.00168,72319.0,72288.0,0.041494]
[1773612230765,0.041486,72302.0,72287.0,0.041494]
[1773612230961,0.00168,72319.0,72286.0,0.00168]
[1773612230962,0.041485,72304.0,72290.0,0.041493]
[1773612231164,0.041488,72298.0,72291.0,0.00168]
[1773612231352,0.00168,72319.0,72291.0,0.00168]
[1773612231353,0.041487,72300.0,72291.0,0.00168]
[1773612231552,0.04149,72295.0,72287.0,0.00168]
[1773612231767,0.04149,72296.0,72287.0,0.00168]
[1773612232065,0.04149,72295.0,72287.0,0.00168]
[1773612232266,0.041478,72317.0,72292.0,0.041491]
[1773612232267,0.041483,72307.0,72292.0,0.041491]
[1773612232463,0.041485,72304.0,72290.0,0.042493]
[1773612232673,0.00168,72318.0,72290.0,0.001]
[1773612232860,0.041486,72302.0,72290.0,0.001]
[1773612233566,0.041486,72302.0,72289.0,0.041493]
[1773612233967,0.041469,72332.0,72287.0,0.00268]
[1773612234163,0.041483,72308.0,72287.0,0.00168]
[1773612234362,0.041483,72308.0,72293.0,0.041491]
[1773612235181,0.041479,72314.0,72289.0,0.001]
[1773612235470,0.041477,72318.0,72304.0,0.041484]
[1773612235665,0.041478,72317.0,72305.0,0.00168]
[1773612235971,0.041478,72317.0,72306.0,0.00168]
[1773612236166,0.041478,72317.0,72307.0,0.00168]
[1773612236876,0.00168,72334.0,72307.0,0.00168]
[1773612237069,0.041477,72318.0,72307.0,0.00168]
[1773612237465,0.041477,72319.0,72307.0,0.00168]
[1773612238065,0.00168,72334.0,72307.0,0.00168]
[1773612238366,0.041479,72314.0,72307.0,0.00168]
[1773612238565,0.00168,72334.0,72307.0,0.00168]
[1773612238767,0.041478,72316.0,72308.0,0.00168]
[1773612238963,0.041479,72315.0,72309.0,0.00168]
[1773612239166,0.041479,72315.0,72285.0,0.2469523]
[1773612239167,0.041479,72315.0,72310.0,0.00168]
[1773612240267,0.041481,72312.0,72311.0,0.00168]
[1773612240475,0.041481,72312.0,72285.0,0.0001065]
[1773612240476,0.041484,72305.0,72302.0,0.00168]
[1773612240769,0.041485,72304.0,72301.0,0.00168]
[1773612241083,0.041485,72304.0,72285.0,0.0001065]
[1773612241266,0.041485,72304.0,72292.0,0.041491]
[1773612241570,0.041485,72305.0,72293.0,0.28562847]
[1773612241773,0.041485,72305.0,72294.0,0.28730847]
[1773612241958,0.041484,72307.0,72295.0,0.28730847]
[1773612242161,0.041484,72307.0,72296.0,0.00168]
[1773612242358,0.00168,72320.0,72297.0,0.00168]
[1773612242560,0.041483,72308.0,72298.0,0.00168]
[1773612242765,0.041482,72309.0,72296.0,0.043129]
[1773612242972,0.041483,72308.0,72296.0,0.043129]
[1773612243175,0.041483,72307.0,72296.0,0.00164]
[1773612243470,0.041483,72308.0,72297.0,0.041489]
[1773612243672,0.04148,72313.0,72300.0,0.041487]
[1773612243872,0.041481,72311.0,72298.0,0.041488]
[1773612244073,0.041482,72310.0,72298.0,0.041488]
[1773612244371,0.276565,72305.0,72254.0,0.00164]
[1773612244569,0.276565,72305.0,72233.0,0.40792156]
[1773612244570,0.08612085,72290.0,72250.0,0.00164]
[1773612244765,0.041495,72287.0,72254.0,0.041513]
[1773612244973,0.041495,72287.0,72256.0,0.041512]
[1773612245172,0.00164,72289.0,72248.0,0.00164]